bitfinex-derivatives/quotes_BNBF0:USTF0_20250507
["timestamp","ask_amount","ask_price","bid_price","bid_amount"]
[1746654891923,1.26403791,600.77,600.04,3.037]
[1746654892120,1.26403791,600.76,600.04,3.037]
[1746654892319,1.01569472,600.78,600.04,3.037]
[1746654892320,2.27973263,600.75,600.04,3.037]
[1746654892521,1.26403791,600.74,600.04,3.037]
[1746654892722,2.27973263,600.73,600.04,3.037]
[1746654892917,1.26378648,600.72,600.04,3.037]
[1746654893117,1.01569472,600.71,600.04,3.037]
[1746654893721,1.01569472,600.7,600.04,3.037]
[1746654894320,1.01569472,600.69,600.04,3.037]
[1746654894726,1.01569472,600.68,600.04,3.037]
[1746654895221,1.01569472,600.67,600.04,3.037]
[1746654895723,1.01569472,600.66,600.04,3.037]
[1746654896119,1.01569472,600.65,600.04,3.037]
[1746654896720,1.01569472,600.64,600.04,3.037]
[1746654897323,1.01569472,600.63,600.04,3.037]
[1746654897923,0.33275655,601.04,600.04,3.037]
[1746654898127,1.26301848,601.03,600.04,3.037]
[1746654898324,2.2781333,601.02,600.04,3.037]
[1746654898520,1.26301848,601.01,600.04,3.037]
[1746654898825,1.26301848,601.0,600.04,3.037]
[1746654899025,1.26301848,600.99,600.04,3.037]
[1746654899325,2.2781333,600.98,600.04,3.037]
[1746654899525,1.26301848,600.97,600.04,3.037]
[1746654899725,1.26301848,600.96,600.04,3.037]
[1746654899925,1.26301848,600.95,600.04,3.037]
[1746654900123,1.26301848,600.94,600.04,3.037]
[1746654900322,1.26301848,600.93,600.04,3.037]
[1746654900522,2.2781333,600.92,600.04,3.037]
[1746654900721,1.26301848,600.91,600.04,3.037]
[1746654900926,2.2781333,600.9,600.04,3.037]
[1746654901228,1.26301848,600.89,600.04,3.037]
[1746654901424,1.01511482,600.88,600.04,3.037]
[1746654901623,1.2629245,600.87,600.04,3.037]
[1746654901823,1.2629245,600.86,600.04,3.037]
[1746654902025,2.27803932,600.85,600.04,3.037]
[1746654902229,1.2629245,600.84,600.04,3.037]
[1746654902427,1.2629245,600.83,600.04,3.037]
[1746654902624,2.27803932,600.82,600.04,3.037]
[1746654902931,2.27803932,600.81,600.04,3.037]
[1746654903230,1.2629245,600.8,600.04,3.037]
[1746654903526,1.2629245,600.79,600.04,3.037]
[1746654903730,1.2629245,600.78,600.04,3.037]
[1746654903930,1.2629245,600.77,600.04,3.037]
[1746654904128,1.2629245,600.76,600.04,3.037]
[1746654904325,1.2629245,600.75,600.04,3.037]
[1746654904530,2.27803932,600.74,600.04,3.037]
[1746654904724,1.01511482,600.74,600.04,3.037]
[1746654905030,1.01511482,600.73,600.04,3.037]
[1746654905831,1.01511482,600.72,600.04,3.037]
[1746654906334,1.01511482,600.71,600.04,3.037]
[1746654906832,1.01511482,600.7,600.04,3.037]
[1746654907334,1.01511482,600.69,600.04,3.037]
[1746654907834,1.01511482,600.68,600.04,3.037]
[1746654908236,1.01511482,600.67,600.04,3.037]
[1746654908436,0.6225549,601.04,600.04,3.037]
[1746654908629,1.263122,601.03,600.04,3.037]
[1746654908831,2.2786422,601.02,600.04,3.037]
[1746654909034,1.263122,601.01,600.04,3.037]
[1746654909235,1.263122,601.0,600.04,3.037]
[1746654909432,1.263122,600.99,600.04,3.037]
[1746654909733,2.2786422,600.98,600.04,3.037]
[1746654909934,1.263122,600.97,600.04,3.037]
[1746654910134,2.2786422,600.96,600.04,3.037]
[1746654910328,1.263122,600.95,600.04,3.037]
[1746654910532,2.2786422,600.94,600.04,3.037]
[1746654910734,1.263122,600.93,600.04,3.037]
[1746654910937,1.263122,600.92,600.04,3.037]
[1746654911135,1.263122,600.91,600.04,3.037]
[1746654911335,1.263122,600.9,600.04,3.037]
[1746654911530,1.263122,600.89,600.04,3.037]
[1746654911831,2.2786422,600.88,600.04,3.037]
[1746654912030,1.263122,600.87,600.04,3.037]
[1746654912234,1.263122,600.86,600.04,3.037]
[1746654912432,1.263122,600.85,600.04,3.037]
[1746654912630,1.263122,600.84,600.04,3.037]
[1746654912835,1.263122,600.83,600.04,3.037]
[1746654913038,1.263122,600.82,600.04,3.037]
[1746654913239,2.2786422,600.81,600.04,3.037]
[1746654913438,1.263122,600.8,600.04,3.037]
[1746654913637,1.263122,600.79,600.04,3.037]
[1746654913938,2.2786422,600.78,600.04,3.037]
[1746654914237,1.263122,600.77,600.04,3.037]
[1746654914431,1.26300474,600.76,600.04,3.037]
[1746654914635,1.26300474,600.75,600.04,3.037]
[1746654914835,2.27848868,600.74,600.04,3.037]
[1746654915130,1.26296848,600.73,600.04,3.037]
[1746654915331,1.26296724,600.72,600.04,3.037]
[1746654915533,1.0155202,600.72,600.04,3.037]
[1746654915738,1.0155202,600.71,600.04,3.037]
[1746654916033,1.0155202,600.7,600.04,3.037]
[1746654916538,1.0155202,600.69,600.04,3.037]
[1746654916938,1.0155202,600.68,600.04,3.037]
[1746654917138,1.0155202,600.67,600.04,3.037]
[1746654917738,0.62254163,601.04,600.04,3.037]
[1746654917939,1.2629326,601.03,600.04,3.037]
[1746654918239,1.26293359,601.02,600.04,3.037]
[1746654918539,2.27815947,601.01,600.04,3.037]
[1746654918740,1.26293359,601.0,600.04,3.037]
[1746654918941,1.26293359,600.99,600.04,3.037]
[1746654919132,2.27815947,600.98,600.04,3.037]
[1746654919336,1.26293359,600.97,600.04,3.037]
[1746654919534,1.26293359,600.96,600.04,3.037]
[1746654919733,1.26293359,600.95,600.04,3.037]
[1746654919938,1.26293359,600.94,600.04,3.037]
[1746654920139,2.27815947,600.93,600.04,3.037]
[1746654920341,1.26293359,600.92,600.04,3.037]
[1746654920538,1.26293359,600.91,600.04,3.037]
[1746654920741,1.26293359,600.9,600.04,3.037]
[1746654920939,2.27815947,600.89,600.04,3.037]
[1746654921240,1.26293359,600.88,600.04,3.037]
[1746654921443,2.27815947,600.87,600.04,3.037]
[1746654921635,1.26293359,600.86,600.04,3.037]
[1746654921838,1.26293359,600.85,600.04,3.037]
[1746654922139,1.26293359,600.84,600.04,3.037]
[1746654922435,2.27815947,600.83,600.04,3.037]
[1746654922635,1.26293359,600.82,600.04,3.037]
[1746654922837,1.26293359,600.81,600.04,3.037]
[1746654923034,2.27815947,600.8,600.04,3.037]
[1746654923341,2.27815947,600.79,600.04,3.037]
[1746654923535,1.26293359,600.78,600.04,3.037]
[1746654923739,1.26293359,600.77,600.04,3.037]
[1746654924035,1.26293359,600.76,600.04,3.037]
[1746654924244,2.27815947,600.75,600.04,3.037]
[1746654924439,1.26293359,600.74,600.04,3.037]
[1746654924636,1.26293359,600.73,600.04,3.037]
[1746654924836,1.26293359,600.72,600.04,3.037]
[1746654925036,1.01522588,600.72,600.04,3.037]
[1746654925541,1.01522588,600.71,600.04,3.037]
[1746654926037,1.01522588,600.7,600.04,3.037]
[1746654926640,1.01522588,600.69,600.04,3.037]
[1746654927339,1.01522588,600.68,600.04,3.037]
[1746654927535,1.01522588,600.67,600.04,3.037]
[1746654927841,0.62255128,601.04,600.04,3.037]
[1746654928041,1.26360189,601.03,600.04,3.037]
[1746654928240,1.26360189,601.02,600.04,3.037]
[1746654928543,2.28039167,601.01,600.04,3.037]
[1746654928837,1.26360189,601.0,600.04,3.037]
[1746654929037,2.28039167,600.99,600.04,3.037]
[1746654929240,1.26360189,600.98,600.04,3.037]
[1746654929443,1.26360189,600.97,600.04,3.037]
[1746654929640,2.28039167,600.96,600.04,3.037]
[1746654929837,1.26360189,600.95,600.04,3.037]
[1746654930138,2.28039167,600.94,600.04,3.037]
[1746654930342,1.26360189,600.93,600.04,3.037]
[1746654930638,2.28039167,600.92,600.04,3.037]
[1746654930838,2.28039167,600.91,600.04,3.037]
[1746654931043,1.26360189,600.9,600.04,3.037]
[1746654931237,1.26360189,600.89,600.04,3.037]
[1746654931442,2.28039167,600.88,600.04,3.037]
[1746654931738,1.26360189,600.87,600.04,3.037]
[1746654931939,1.26360189,600.86,600.04,3.037]
[1746654932139,2.28039167,600.85,600.04,3.037]
[1746654932340,1.26360189,600.84,600.04,3.037]
[1746654932540,1.26360189,600.83,600.04,3.037]
[1746654932844,1.26360189,600.82,600.04,3.037]
[1746654933044,1.26360189,600.81,600.04,3.037]
[1746654933244,1.26360189,600.8,600.04,3.037]
[1746654933447,2.28039167,600.79,600.04,3.037]
[1746654933747,1.26360189,600.78,600.04,3.037]
[1746654933945,2.28039167,600.77,600.04,3.037]
[1746654934247,1.26360189,600.76,600.04,3.037]
[1746654934441,1.26360189,600.75,600.04,3.037]
[1746654934648,1.26360189,600.74,600.04,3.037]
[1746654934947,1.26578322,600.73,600.04,3.037]
[1746654935143,2.282573,600.72,600.04,3.037]
[1746654935448,1.01678978,600.71,600.04,3.037]
[1746654935845,1.01678978,600.7,600.04,3.037]
[1746654936344,1.01678978,600.69,600.04,3.037]
[1746654936844,1.01678978,600.68,600.04,3.037]
[1746654937643,1.01678978,600.67,600.04,3.037]
[1746654938142,0.33275655,601.04,600.04,3.037]
[1746654938347,1.26444419,601.03,600.04,3.037]
[1746654938546,1.26444419,601.02,600.04,3.037]
[1746654938744,2.28087751,601.01,600.04,3.037]
[1746654938950,1.26444419,601.0,600.04,3.037]
[1746654939148,1.26444419,600.99,600.04,3.037]
[1746654939349,2.28087751,600.98,600.04,3.037]
[1746654939643,1.26444419,600.97,600.04,3.037]
[1746654939847,1.26444419,600.96,600.04,3.037]
[1746654940046,1.26444419,600.95,600.04,3.037]
[1746654940249,1.26444419,600.94,600.04,3.037]
[1746654940446,1.26444419,600.93,600.04,3.037]
[1746654940648,1.26444419,600.92,600.04,3.037]
[1746654940850,2.28087751,600.91,600.04,3.037]
[1746654941046,2.28087751,600.9,600.04,3.037]
[1746654941245,1.26444419,600.89,600.04,3.037]
[1746654941445,1.26444419,600.88,600.04,3.037]
[1746654941649,2.28087751,600.87,600.04,3.037]
[1746654941950,1.26444419,600.86,600.04,3.037]
[1746654942148,2.27923386,600.85,600.04,3.037]
[1746654942444,1.26280054,600.84,600.04,3.037]
[1746654942645,1.26280054,600.83,600.04,3.037]
[1746654942845,1.26280054,600.82,600.04,3.037]
[1746654943047,2.27923386,600.81,600.04,3.037]
[1746654943251,1.26280054,600.8,600.04,3.037]
[1746654943547,1.26280054,600.79,600.04,3.037]
[1746654943750,2.27923386,600.78,600.04,3.037]
[1746654943946,1.26282451,600.77,600.04,3.037]
[1746654944152,1.26282451,600.76,600.04,3.037]
[1746654944353,2.27925783,600.75,600.04,3.037]
[1746654944554,1.01643332,600.75,600.04,3.037]
[1746654944754,1.26283472,600.74,600.04,3.037]
[1746654945053,1.26283472,600.73,600.04,3.037]
[1746654945549,1.01643332,600.75,600.04,3.037]
[1746654945753,1.26283056,600.74,600.04,3.037]
[1746654945954,1.26283082,600.74,600.04,3.037]
[1746654946154,1.01643332,600.75,600.04,3.037]
[1746654946651,1.26283429,600.74,600.04,3.037]
[1746654946950,1.01643332,600.75,600.04,3.037]
[1746654947155,1.26283432,600.74,600.04,3.037]
[1746654947348,2.27926764,600.73,600.04,3.037]
[1746654947549,0.62254766,601.04,600.04,3.037]
[1746654947550,2.27926764,600.72,600.04,3.037]
[1746654947854,1.01643332,600.71,600.04,3.037]
[1746654948652,1.01643332,600.7,600.04,3.037]
[1746654949262,0.62254766,601.04,600.04,3.037]
[1746654949462,1.01606495,600.69,600.04,3.037]
[1746654949863,1.01606495,600.68,600.04,3.037]
[1746654950363,1.01606495,600.67,600.04,3.037]
[1746654950862,1.01606495,600.66,600.04,3.037]
[1746654951161,1.01606495,600.65,600.04,3.037]
[1746654951462,0.6225549,601.04,600.04,3.037]
[1746654951662,1.26033348,601.03,600.04,3.037]
[1746654951862,2.27539387,601.02,600.04,3.037]
[1746654952064,1.26033348,601.01,600.04,3.037]
[1746654952261,1.26033348,601.0,600.04,3.037]
[1746654952462,1.26033348,600.99,600.04,3.037]
[1746654952659,2.27539387,600.98,600.04,3.037]
[1746654952861,1.26033348,600.97,600.04,3.037]
[1746654953165,1.26033348,600.96,600.04,3.037]
[1746654953362,2.27539387,600.95,600.04,3.037]
[1746654953561,1.26033348,600.94,600.04,3.037]
[1746654953762,1.26033348,600.93,600.04,3.037]
[1746654954061,1.26033348,600.92,600.04,3.037]
[1746654954265,1.26033348,600.91,600.04,3.037]
[1746654954464,1.26033348,600.9,600.04,3.037]
[1746654954765,2.27539387,600.89,600.04,3.037]
[1746654955063,1.26033348,600.88,600.04,3.037]
[1746654955262,1.26033348,600.87,600.04,3.037]
[1746654955464,2.27539387,600.86,600.04,3.037]
[1746654955662,1.26044069,600.85,600.04,3.037]
[1746654955867,1.26044069,600.84,600.04,3.037]
[1746654956068,1.26044069,600.83,600.04,3.037]
[1746654956367,1.26044069,600.82,600.04,3.037]
[1746654956569,1.26044069,600.81,600.04,3.037]
[1746654956768,1.26044069,600.8,600.04,3.037]
[1746654956968,2.27550108,600.79,600.04,3.037]
[1746654957167,1.26044069,600.78,600.04,3.037]
[1746654957366,1.26044069,600.77,600.04,3.037]
[1746654957564,1.26044069,600.76,600.04,3.037]
[1746654957769,1.26044069,600.75,600.04,3.037]
[1746654957968,1.26044069,600.74,600.04,3.037]
[1746654958269,2.27550108,600.73,600.04,3.037]
[1746654958462,1.26044069,600.72,600.04,3.037]
[1746654958666,1.01506039,600.71,600.04,3.037]
[1746654959269,1.01506039,600.7,600.04,3.037]
[1746654959966,1.01506039,600.69,600.04,3.037]
[1746654961167,1.01506039,600.68,600.04,3.037]
[1746654961466,1.01506039,600.67,600.04,3.037]
[1746654962071,1.01506039,600.66,600.04,3.037]
[1746654962467,1.01459704,600.65,600.04,3.037]
[1746654962771,0.33275655,601.04,600.04,3.037]
[1746654962970,1.26009452,601.03,600.04,3.037]
[1746654963172,1.26009452,601.02,600.04,3.037]
[1746654963372,2.27464465,601.01,600.04,3.037]
[1746654963572,1.26009452,601.0,600.04,3.037]
[1746654963773,1.26009452,600.99,600.04,3.037]
[1746654963972,1.26012481,600.98,600.04,3.037]
[1746654964270,1.26012481,600.97,600.04,3.037]
[1746654964569,2.27467494,600.96,600.04,3.037]
[1746654964773,2.27467494,600.95,600.04,3.037]
[1746654964973,2.27467494,600.94,600.04,3.037]
[1746654965170,1.26012481,600.93,600.04,3.037]
[1746654965370,1.26012481,600.92,600.04,3.037]
[1746654965574,1.26012481,600.91,600.04,3.037]
[1746654965774,1.26012481,600.9,600.04,3.037]
[1746654966070,1.26012481,600.89,600.04,3.037]
[1746654966274,1.26004465,600.88,600.04,3.037]
[1746654966473,1.26004465,600.87,600.04,3.037]
[1746654966775,1.26004465,600.86,600.04,3.037]
[1746654966972,2.27459478,600.85,600.04,3.037]
[1746654967170,1.26004465,600.84,600.04,3.037]
[1746654967470,2.27459478,600.83,600.04,3.037]
[1746654967674,2.27459478,600.82,600.04,3.037]
[1746654967873,1.26004465,600.81,600.04,3.037]
[1746654968069,1.26004465,600.8,600.04,3.037]
[1746654968275,2.27459478,600.79,600.04,3.037]
[1746654968469,1.26004465,600.78,600.04,3.037]
[1746654968773,2.27459478,600.77,600.04,3.037]
[1746654968971,1.26004465,600.76,600.04,3.037]
[1746654969173,1.01455013,600.77,600.04,3.037]
[1746654969174,1.26004465,600.75,600.04,3.037]
[1746654969370,2.27459478,600.74,600.04,3.037]
[1746654969575,1.26004465,600.73,600.04,3.037]
[1746654969872,1.26004465,600.72,600.04,3.037]
[1746654970177,2.27459478,600.71,600.04,3.037]
[1746654970374,1.01455013,600.71,600.04,3.037]
[1746654970773,1.01455013,600.7,600.04,3.037]
[1746654971277,0.33275655,601.04,600.04,3.037]
[1746654971278,1.01455013,600.69,600.04,3.037]
[1746654971678,1.01455013,600.68,600.04,3.037]
[1746654972074,1.01455013,600.67,600.04,3.037]
[1746654972778,1.01455013,600.66,600.04,3.037]
[1746654973074,1.01455013,600.65,600.04,3.037]
[1746654973280,0.33275655,601.04,600.04,3.037]
[1746654973476,2.2752126,601.03,600.04,3.037]
[1746654973678,2.27520419,601.02,600.04,3.037]
[1746654973879,2.27520419,601.01,600.04,3.037]
[1746654974078,2.27520419,601.0,600.04,3.037]
[1746654974276,1.26077085,600.99,600.04,3.037]
[1746654974479,1.26077085,600.98,600.04,3.037]
[1746654974679,1.26077085,600.97,600.04,3.037]
[1746654974980,2.27522944,600.96,600.04,3.037]
[1746654975275,2.27522944,600.95,600.04,3.037]
[1746654975478,1.26077085,600.94,600.04,3.037]
[1746654975679,1.26077085,600.93,600.04,3.037]
[1746654975978,2.27522944,600.92,600.04,3.037]
[1746654976278,1.26077085,600.91,600.04,3.037]
[1746654976479,1.26077085,600.9,600.04,3.037]
[1746654976681,2.27522944,600.89,600.04,3.037]
[1746654976877,2.27522944,600.88,600.04,3.037]
[1746654977082,1.26077085,600.87,600.04,3.037]
[1746654977382,1.26077085,600.86,600.04,3.037]
[1746654977577,1.26077085,600.85,600.04,3.037]
[1746654977778,2.27522944,600.84,600.04,3.037]
[1746654978076,2.27522944,600.83,600.04,3.037]
[1746654978279,1.26077085,600.82,600.04,3.037]
[1746654978478,1.01445859,600.83,600.04,3.037]
[1746654978479,1.26077085,600.81,600.04,3.037]
[1746654978680,2.27522944,600.8,600.04,3.037]
[1746654978878,1.26077085,600.79,600.04,3.037]
[1746654979082,1.26077085,600.78,600.04,3.037]
[1746654979285,1.26077085,600.77,600.04,3.037]
[1746654979584,1.26077085,600.76,600.04,3.037]
[1746654979786,1.26077085,600.75,600.04,3.037]
[1746654980085,1.26077085,600.74,600.04,3.037]
[1746654980286,1.26077085,600.73,600.04,3.037]
[1746654980486,1.26077085,600.72,600.04,3.037]
[1746654980681,1.26077085,600.71,600.04,3.037]
[1746654980886,1.01445859,600.7,600.04,3.037]
[1746654981682,1.01445859,600.69,600.04,3.037]
[1746654981990,1.01445859,600.68,600.04,3.037]
[1746654982384,1.01445859,600.67,600.04,3.037]
[1746654982683,1.01445859,600.66,600.04,3.037]
[1746654983288,1.01445859,600.65,600.04,3.037]
[1746654983689,1.01445859,600.64,600.04,3.037]
[1746654984190,1.01445859,600.63,600.04,3.037]
[1746654984387,0.62255731,601.04,600.04,3.037]
[1746654984591,1.26002629,601.03,600.04,3.037]
[1746654984786,2.27434095,601.02,600.04,3.037]
[1746654984985,1.26002629,601.01,600.04,3.037]
[1746654985190,1.26002629,601.0,600.04,3.037]
[1746654985387,2.27434095,600.99,600.04,3.037]
[1746654985590,1.26002629,600.98,600.04,3.037]
[1746654985786,2.27434095,600.97,600.04,3.037]
[1746654985986,2.27365973,600.96,600.04,3.037]
[1746654986292,2.27365973,600.95,600.04,3.037]
[1746654986586,1.01431466,600.95,600.04,3.037]
[1746654986792,1.01431466,600.94,600.04,3.037]
[1746654987186,1.01431466,600.93,600.04,3.037]
[1746654987887,1.01431466,600.92,600.04,3.037]
[1746654988291,1.01431466,600.91,600.04,3.037]
[1746654988691,1.01431466,600.9,600.04,3.037]
[1746654989192,1.01431466,600.89,600.04,3.037]
[1746654990192,1.01431466,600.88,600.04,3.037]
[1746654990890,1.01431466,600.87,600.04,3.037]
[1746654991294,1.01431466,600.86,600.04,3.037]
[1746654991695,1.01431466,600.85,600.04,3.037]
[1746654992700,1.01431466,600.84,600.04,3.037]
[1746654992995,1.01431466,600.83,600.04,3.037]
[1746654993499,1.01431466,600.82,600.04,3.037]
[1746654993999,1.01431466,600.81,600.04,3.037]
[1746654994401,1.01431466,600.8,600.04,3.037]
[1746654994801,1.01431466,600.79,600.04,3.037]
[1746654995503,1.01431466,600.78,600.04,3.037]
[1746654995804,1.01431466,600.77,600.04,3.037]
[1746654996402,1.01431466,600.76,600.04,3.037]
[1746654996899,1.01431466,600.75,600.04,3.037]
[1746654997300,1.01431466,600.74,600.04,3.037]
[1746654997905,1.01431466,600.73,600.04,3.037]
[1746654998405,1.01431466,600.72,600.04,3.037]
[1746654998604,1.01431466,600.71,600.04,3.037]
[1746654998904,1.01431466,600.7,600.04,3.037]
[1746654999304,1.01431466,600.69,600.04,3.037]
[1746654999906,1.01431466,600.68,600.04,3.037]
[1746655000300,1.01431466,600.67,600.04,3.037]
[1746655000700,0.62254887,601.04,600.04,3.037]
[1746655000907,0.33275655,601.04,600.04,3.037]
[1746655001102,1.01325279,601.03,600.04,3.037]
[1746655001503,1.01325279,601.02,600.04,3.037]
[1746655002003,1.01325279,601.01,600.04,3.037]
[1746655003009,1.01325279,601.0,600.04,3.037]
[1746655003612,1.01325279,600.99,600.04,3.037]
[1746655004107,1.01325279,600.98,600.04,3.037]
[1746655004511,1.01325279,600.97,600.04,3.037]
[1746655004809,1.01325279,600.96,600.04,3.037]
[1746655005212,1.01325279,600.95,600.04,3.037]
[1746655005713,1.01325279,600.94,600.04,3.037]
[1746655006011,1.01325279,600.93,600.04,3.037]
[1746655006215,1.01325279,600.92,600.04,3.037]
[1746655006509,1.01325279,600.91,600.04,3.037]
[1746655006814,1.01325279,600.9,600.04,3.037]
[1746655007010,1.01320599,600.89,600.04,3.037]
[1746655009417,1.01320599,600.88,600.04,3.037]
[1746655010716,1.01320599,600.87,600.04,3.037]
[1746655011923,1.01320599,600.86,600.04,3.037]
[1746655012422,1.01320599,600.85,600.04,3.037]
[1746655012922,1.01320599,600.84,600.04,3.037]
[1746655013422,1.01320599,600.83,600.04,3.037]
[1746655014219,1.01320599,600.82,600.04,3.037]
[1746655014424,1.01320599,600.81,600.04,3.037]
[1746655014924,1.01320599,600.8,600.04,3.037]
[1746655015422,1.01320599,600.79,600.04,3.037]
[1746655015925,1.01320599,600.78,600.04,3.037]
[1746655016520,1.01320599,600.77,600.04,3.037]
[1746655016927,1.01320599,600.76,600.04,3.037]
[1746655017920,1.01320599,600.75,600.04,3.037]
[1746655018425,1.01320599,600.74,600.04,3.037]
[1746655018825,1.01320599,600.73,600.04,3.037]
[1746655019726,0.33275655,601.04,600.04,3.037]
[1746655019727,1.01320599,600.72,600.04,3.037]
[1746655020228,1.01320599,600.71,600.04,3.037]
[1746655020621,1.01320599,600.7,600.04,3.037]
[1746655021326,1.01320599,600.69,600.04,3.037]
[1746655021627,1.01320599,600.68,600.04,3.037]
[1746655022228,1.01320599,600.67,600.04,3.037]
[1746655022928,1.01320599,600.66,600.04,3.037]
[1746655023324,0.33275655,601.04,600.04,3.037]
[1746655023723,1.01355816,601.03,600.04,3.037]
[1746655024024,1.01355816,601.02,600.04,3.037]
[1746655024628,1.01355816,601.01,600.04,3.037]
[1746655024927,1.01355816,601.0,600.04,3.037]
[1746655025428,1.01355816,600.99,600.04,3.037]
[1746655025630,1.01355816,600.98,600.04,3.037]
[1746655026128,1.01355816,600.97,600.04,3.037]
[1746655026724,1.01355816,600.96,600.04,3.037]
[1746655027028,1.01355816,600.95,600.04,3.037]
[1746655027528,1.01355816,600.94,600.04,3.037]
[1746655027826,1.01355816,600.93,600.04,3.037]
[1746655028230,1.01355816,600.92,600.04,3.037]
[1746655028530,1.01355816,600.91,600.04,3.037]
[1746655028927,1.01355816,600.9,600.04,3.037]
[1746655029427,1.01355816,600.89,600.04,3.037]
[1746655029731,1.01355816,600.88,600.04,3.037]
[1746655030227,1.01355816,600.87,600.04,3.037]
[1746655030632,1.01355816,600.86,600.04,3.037]
[1746655031334,1.01355816,600.85,600.04,3.037]
[1746655032132,1.01355816,600.84,600.04,3.037]
[1746655032632,1.01355816,600.83,600.04,3.037]
[1746655033232,1.01355816,600.82,600.04,3.037]
[1746655033834,1.01355816,600.81,600.04,3.037]
[1746655034433,1.01355816,600.8,600.04,3.037]
[1746655034732,1.01355816,600.79,600.04,3.037]
[1746655035335,1.01355816,600.78,600.04,3.037]
[1746655035935,1.01355816,600.77,600.04,3.037]
[1746655036535,1.01355816,600.76,600.04,3.037]
[1746655036735,1.01355816,600.75,600.04,3.037]
[1746655037235,1.01355816,600.74,600.04,3.037]
[1746655038037,1.01355816,600.73,600.04,3.037]
[1746655038432,1.01355816,600.72,600.04,3.037]
[1746655038835,1.01355816,600.71,600.04,3.037]
[1746655039335,1.01355816,600.7,600.04,3.037]
[1746655039936,1.01355816,600.69,600.04,3.037]
[1746655040533,1.01355816,600.68,600.04,3.037]
[1746655040938,1.01355816,600.67,600.04,3.037]
[1746655041234,0.28979111,601.03,600.04,3.037]
[1746655041734,1.01334154,601.02,600.04,3.037]
[1746655042034,1.01334154,601.01,600.04,3.037]
[1746655042637,1.01334154,601.0,600.04,3.037]
[1746655043133,1.01334154,600.99,600.04,3.037]
[1746655043433,1.01334154,600.98,600.04,3.037]
[1746655044038,1.01334154,600.97,600.04,3.037]
[1746655044333,1.01334154,600.96,600.04,3.037]
[1746655044736,1.01334154,600.95,600.04,3.037]
[1746655045138,1.01334154,600.94,600.04,3.037]
[1746655045439,1.01334154,600.93,600.04,3.037]
[1746655045937,1.01334154,600.92,600.04,3.037]
[1746655046437,1.01334154,600.91,600.04,3.037]
[1746655047238,1.01334154,600.9,600.04,3.037]
[1746655047633,1.01334154,600.89,600.04,3.037]
[1746655047932,1.01334154,600.88,600.04,3.037]
[1746655048339,1.01334154,600.87,600.04,3.037]
[1746655048739,1.01334154,600.86,600.04,3.037]
[1746655049337,1.01334154,600.85,600.04,3.037]
[1746655049840,1.01334154,600.84,600.04,3.037]
[1746655050440,1.01334154,600.83,600.04,3.037]
[1746655050735,1.01334154,600.82,600.04,3.037]
[1746655051240,1.01334154,600.81,600.04,3.037]
[1746655051640,1.01334154,600.8,600.04,3.037]
[1746655052141,1.01334154,600.79,600.04,3.037]
[1746655052541,1.01334154,600.78,600.04,3.037]
[1746655052845,1.01334154,600.77,600.04,3.037]
[1746655053744,1.01334154,600.76,600.04,3.037]
[1746655054043,1.01334154,600.75,600.04,3.037]
[1746655054339,1.01334154,600.74,600.04,3.037]
[1746655054839,1.01334154,600.73,600.04,3.037]
[1746655055246,1.01334154,600.72,600.04,3.037]
[1746655055542,1.01334154,600.71,600.04,3.037]
[1746655056144,1.01334154,600.7,600.04,3.037]